bitfinex/quotes_BTCUSD_20241001
["timestamp","ask_amount","ask_price","bid_price","bid_amount"]
[1727803645234,0.001644,61436.0,61435.0,1.00984485]
[1727803645474,0.001642,61448.0,61439.0,0.162763]
[1727803645716,0.001642,61448.0,61439.0,0.50137175]
[1727803645954,0.001642,61448.0,61438.0,0.325531]
[1727803645955,0.001642,61448.0,61447.0,0.69690827]
[1727803646239,0.001644,61454.0,61448.0,0.262739]
[1727803646478,0.001644,61471.0,61457.0,0.72951227]
[1727803647189,0.001644,61471.0,61469.0,0.59685027]
[1727803647436,0.001644,61471.0,61469.0,0.69685027]
[1727803648185,0.001644,61471.0,61469.0,0.88592705]
[1727803648451,0.000821,61482.0,61481.0,0.262651]
[1727803648713,0.000821,61482.0,61481.0,0.69681827]
[1727803649515,0.001642,61498.0,61481.0,0.69681827]
[1727803649516,0.001642,61498.0,61492.0,0.162622]
[1727803649749,0.001642,61498.0,61492.0,0.59678927]
[1727803649975,0.001642,61498.0,61492.0,0.6889941]
[1727803650684,0.1580998,61493.0,61486.0,0.325273]
[1727803650919,0.1580998,61493.0,61481.0,0.114]
[1727803650920,0.1564578,61492.0,61481.0,0.114]
[1727803651172,0.000819,61502.0,61481.0,0.114]
[1727803651173,0.0148553,61519.0,61491.0,0.86692507]
[1727803651456,0.000207,61569.0,61543.0,0.16457097]
[1727803651684,0.000207,61569.0,61543.0,0.69873824]
[1727803651934,0.000207,61569.0,61543.0,0.89002174]
[1727803652216,0.000207,61569.0,61552.0,0.69871424]
[1727803652449,0.000207,61569.0,61552.0,0.85517204]
[1727803652450,0.000819,61555.0,61552.0,0.85517204]
[1727803652703,0.000819,61555.0,61552.0,0.90655327]
[1727803652941,0.000819,61555.0,61552.0,0.69666065]
[1727803653178,0.000819,61555.0,61552.0,0.82318302]
[1727803653405,0.000819,61555.0,61552.0,0.59653126]
[1727803654030,0.1565578,61553.0,61546.0,0.43416727]
[1727803654283,0.1564578,61552.0,61547.0,0.24491395]
[1727803654544,0.1564578,61552.0,61540.0,0.43516667]
[1727803654747,0.1564578,61552.0,61547.0,0.162477]
[1727803654954,0.1564578,61552.0,61545.0,0.24491395]
[1727803655125,0.023,61551.0,61540.0,0.47868334]
[1727803655356,0.324956,61547.0,61544.0,0.24491395]
[1727803655587,0.023,61545.0,61544.0,0.24491395]
[1727803655849,0.162465,61552.0,61544.0,0.24491395]
[1727803656077,0.1794578,61551.0,61541.0,0.24491395]
[1727803656303,0.0001,61553.0,61539.0,0.324995]
[1727803656304,0.0001,61553.0,61547.0,0.43416727]
[1727803656528,0.1564578,61552.0,61551.0,0.162466]
[1727803656743,0.0001,61553.0,61547.0,0.43416727]
[1727803656958,0.1564578,61552.0,61539.0,0.0009967]
[1727803657227,0.0001,61553.0,61543.0,0.24491395]
[1727803657228,0.1564578,61549.0,61543.0,0.24491395]
[1727803657474,0.0001,61553.0,61539.0,0.0009967]
[1727803657475,0.324955,61547.0,61539.0,0.0009967]
[1727803657703,0.162495,61540.0,61539.0,0.0009967]
[1727803657942,0.162519,61531.0,61530.0,0.0025]
[1727803658158,0.3419768,61531.0,61530.0,0.0025]
[1727803658385,0.34644062,61531.0,61530.0,0.0025]
[1727803658628,0.18392162,61531.0,61530.0,0.0025]
[1727803659085,0.1794578,61531.0,61530.0,0.0025]
[1727803659532,0.3419768,61531.0,61530.0,0.0025]
[1727803660236,0.3189768,61531.0,61530.0,0.0025]
[1727803660464,0.325046,61530.0,61514.0,0.24491395]
[1727803660678,0.325071,61525.0,61514.0,0.24491395]
[1727803660941,0.325071,61525.0,61486.0,0.325275]
[1727803660942,0.4815518,61521.0,61518.0,0.24491395]
[1727803661195,0.325047,61530.0,61519.0,0.24491395]
[1727803661423,0.005,61541.0,61520.0,0.24491395]
[1727803661676,0.007,61531.0,61530.0,0.001]
[1727803661887,0.0001,61553.0,61537.0,0.162502]
[1727803662103,0.1564578,61549.0,61538.0,0.162499]
[1727803662325,0.007,61530.0,61527.0,0.325059]
[1727803662571,0.007,61530.0,61529.0,0.162524]
[1727803662792,0.162478,61547.0,61538.0,0.162499]
[1727803663009,0.0001,61553.0,61527.0,0.325059]
[1727803663010,0.162494,61541.0,61527.0,0.325059]
[1727803663238,0.3189548,61540.0,61531.0,0.40743195]
[1727803663461,0.3189548,61540.0,61527.0,0.325059]
[1727803663462,0.4814498,61540.0,61527.0,0.325059]
[1727803663723,0.325022,61535.0,61524.0,0.24491395]
[1727803663962,0.023,61533.0,61524.0,0.24491395]
[1727803664192,0.023,61530.0,61526.0,0.24491395]
[1727803664412,0.023,61528.0,61526.0,0.24491395]
[1727803664632,0.1564578,61527.0,61526.0,0.40744595]
[1727803664890,0.1564578,61527.0,61526.0,0.162532]
[1727803665113,0.0051,61553.0,61526.0,0.24511395]
[1727803665114,0.324934,61551.0,61526.0,0.24511395]
[1727803665329,0.023,61545.0,61532.0,0.32503]
[1727803665559,0.023,61545.0,61526.0,0.0002]
[1727803665560,0.023,61543.0,61531.0,0.162519]
[1727803665787,0.1564578,61534.0,61514.0,0.0002]
[1727803666010,0.023,61533.0,61526.0,0.24491395]
[1727803666441,0.023,61533.0,61520.0,0.325096]
[1727803666666,0.324999,61539.0,61523.0,0.16254]
[1727803666895,0.3189628,61537.0,61520.0,0.24491395]
[1727803667110,0.1564578,61537.0,61524.0,0.162537]
[1727803667340,0.007,61549.0,61520.0,0.24491395]
[1727803667341,0.0048,61572.0,61545.0,0.0002]
[1727803667567,0.0048,61572.0,61542.0,0.162488]
[1727803667568,0.40137175,61551.0,61542.0,0.162488]
[1727803667789,0.1564578,61551.0,61550.0,0.162469]
[1727803668236,0.1564578,61551.0,61532.0,0.0002]
[1727803668463,0.1564578,61551.0,61540.0,0.24491395]
[1727803668701,0.1574578,61551.0,61540.0,0.24491395]
[1727803668957,0.1564578,61551.0,61540.0,0.67908122]
[1727803669157,0.1574578,61551.0,61540.0,0.67908122]
[1727803669600,0.1574578,61551.0,61546.0,0.162479]
[1727803670081,0.1574578,61551.0,61542.0,0.324978]
[1727803670295,0.023,61550.0,61540.0,0.24491395]
[1727803670515,0.023,61548.0,61541.0,0.24491395]
[1727803670747,0.162563,61553.0,61542.0,0.24491395]
[1727803670748,0.023,61546.0,61542.0,0.24491395]
[1727803670975,0.023,61544.0,61543.0,0.162488]
[1727803671233,0.1564578,61544.0,61543.0,0.162488]
[1727803671882,0.1564578,61544.0,61542.0,0.004]
[1727803671883,0.023,61543.0,61542.0,0.004]
[1727803672091,0.1794578,61543.0,61536.0,0.24491395]
[1727803672315,0.023,61541.0,61537.0,0.24491395]
[1727803672540,0.023,61539.0,61537.0,0.24491395]
[1727803672759,0.1794578,61538.0,61537.0,0.24491395]
[1727803673006,0.1794578,61538.0,61521.0,0.0002]
[1727803673237,0.1794578,61538.0,61533.0,0.24491395]
[1727803673460,0.19740358,61538.0,61530.0,0.32504]
[1727803673702,0.03026473,61548.0,61504.0,0.24511395]
[1727803673703,0.0048,61528.0,61504.0,0.24511395]
[1727803673933,0.023,61525.0,61523.0,0.24491395]
[1727803674160,0.023,61521.0,61509.0,0.487729]
[1727803674386,0.023,61521.0,61516.0,0.24491395]
[1727803674600,0.023,61519.0,61512.0,0.24491395]
[1727803674829,0.023,61519.0,61513.0,0.325133]
[1727803674830,0.1564578,61519.0,61513.0,0.325133]
[1727803675087,0.023,61530.0,61526.0,0.162531]
[1727803675307,0.023,61530.0,61523.0,0.325076]
[1727803675308,0.023,61528.0,61524.0,0.162537]
[1727803675568,0.1564578,61527.0,61526.0,0.164172]
[1727803676341,0.005,61537.0,61526.0,0.164172]
[1727803676342,0.0048,61540.0,61530.0,0.325042]
[1727803676575,0.1564578,61539.0,61538.0,0.162501]
[1727803676806,0.1564578,61539.0,61526.0,0.00164]
[1727803676807,0.17435969,61539.0,61526.0,0.00164]
[1727803677072,0.17435969,61539.0,61527.0,0.24491395]
[1727803677073,0.01788914,61538.0,61527.0,0.24491395]
[1727803677297,0.01788914,61538.0,61526.0,0.00164]
[1727803677298,0.002,61534.0,61526.0,0.00164]
[1727803677559,0.59542507,61535.0,61527.0,0.24491395]
[1727803677560,0.023,61532.0,61527.0,0.24491395]
[1727803677808,0.013,61530.0,61527.0,0.24491395]
[1727803678065,0.1564578,61529.0,61527.0,0.24491395]
[1727803678318,0.1564578,61529.0,61528.0,0.162527]
[1727803678761,0.18192606,61529.0,61528.0,0.162527]
[1727803678987,0.1564578,61529.0,61528.0,0.162527]
[1727803679448,0.00082,61541.0,61538.0,0.325001]
[1727803679671,0.1564578,61540.0,61539.0,0.162498]
[1727803679894,0.00082,61541.0,61539.0,0.162498]
[1727803679895,0.00082,61541.0,61540.0,0.162495]
[1727803680369,0.1572778,61541.0,61540.0,0.162495]
[1727803680591,0.1572778,61541.0,61525.0,0.325069]
[1727803680592,0.1753119,61541.0,61525.0,0.325069]
[1727803680807,0.1753119,61541.0,61539.0,0.163498]
[1727803680808,0.0210341,61540.0,61539.0,0.163498]
[1727803681048,0.0180341,61540.0,61539.0,0.162498]
[1727803681507,0.00082,61541.0,61539.0,0.162498]
[1727803681508,0.00082,61541.0,61540.0,0.162495]
[1727803681974,0.1572778,61541.0,61540.0,0.162495]
[1727803682222,0.17530748,61541.0,61540.0,0.162495]
[1727803682494,0.00082,61541.0,61540.0,0.52115945]
[1727803682803,0.00082,61541.0,61540.0,0.40740895]
[1727803683013,0.1572778,61541.0,61540.0,0.162495]
[1727803683240,0.17521228,61541.0,61526.0,0.32875395]
[1727803683498,0.01793448,61540.0,61539.0,0.162498]
[1727803683933,0.00082,61541.0,61533.0,0.56994095]
[1727803684181,0.04347872,61540.0,61539.0,0.162498]
[1727803684400,0.03592378,61540.0,61539.0,0.162498]
[1727803684647,0.01790833,61540.0,61539.0,0.67306527]
[1727803684889,0.00082,61552.0,61551.0,0.162666]
[1727803685138,0.00082,61552.0,61551.0,0.59670862]
[1727803685373,0.00082,61552.0,61551.0,0.69670862]
[1727803685586,0.00082,61552.0,61551.0,0.72933862]
[1727803685814,0.000819,61555.0,61554.0,0.262658]
[1727803686513,0.000819,61555.0,61554.0,0.162458]
[1727803686941,0.000819,61555.0,61547.0,0.32495]
[1727803687175,0.000819,61555.0,61539.0,0.401194]
[1727803687176,0.000819,61555.0,61539.0,0.0762]
[1727803687408,0.000819,61555.0,61530.0,0.001638]
[1727803687409,0.000819,61555.0,61554.0,0.014]
[1727803687635,0.000819,61555.0,61534.0,0.0002]
[1727803687891,0.000819,61555.0,61530.0,0.001638]
[1727803687892,0.0278,61550.0,61530.0,0.001638]
[1727803688123,0.023,61548.0,61544.0,0.24491395]
[1727803688348,0.20001155,61547.0,61538.0,0.1625]
[1727803688556,0.20001155,61547.0,61534.0,0.325022]
[1727803688557,0.04355375,61546.0,61540.0,0.24491395]
[1727803688774,0.04355375,61546.0,61534.0,0.325022]
[1727803688775,0.17106784,61545.0,61534.0,0.162511]
[1727803689006,0.17106784,61545.0,61540.0,0.24491395]
[1727803689226,0.01461004,61544.0,61535.0,0.325017]
[1727803689451,0.1564578,61543.0,61539.0,0.001]
[1727803689679,0.01461004,61542.0,61539.0,0.001]
[1727803689922,0.1564578,61541.0,61537.0,0.162503]
[1727803690170,0.1564578,61541.0,61539.0,0.162497]
[1727803690415,0.1564578,61541.0,61536.0,0.24491395]
[1727803690416,0.01459357,61541.0,61536.0,0.24491395]
[1727803690631,0.023,61556.0,61537.0,0.05699439]
[1727803690843,0.023,61556.0,61533.0,0.0002]
[1727803690844,0.24491395,61551.0,61538.0,0.1625]
[1727803691092,0.023,61549.0,61533.0,0.24491395]
[1727803691317,0.329732,61552.0,61533.0,0.24491395]
[1727803691318,0.023,61545.0,61533.0,0.24491395]
[1727803691552,0.19974621,61544.0,61540.0,0.24491395]
[1727803691799,0.06875052,61543.0,61526.0,0.31882489]
[1727803692019,0.19974621,61542.0,61533.0,0.24491395]
[1727803692256,0.04328841,61541.0,61533.0,0.24491395]
[1727803692506,0.02546211,61543.0,61526.0,0.57181595]
[1727803692507,0.19974621,61540.0,61526.0,0.29460124]
[1727803692711,0.04328841,61539.0,61533.0,0.24491395]
[1727803692951,0.19974621,61538.0,61537.0,0.001]
[1727803693155,0.19974621,61538.0,61531.0,0.162518]
[1727803693392,0.01459251,61537.0,61534.0,0.0002]
[1727803693615,0.324925,61553.0,61535.0,0.487526]
[1727803693616,0.01459251,61536.0,61535.0,0.487526]
[1727803693851,0.34956975,61553.0,61537.0,0.325006]
[1727803694066,0.34956975,61553.0,61535.0,0.325017]
[1727803694067,0.24491395,61550.0,61540.0,0.162495]
[1727803694478,0.24491395,61550.0,61534.0,0.04824729]
[1727803694479,0.22291905,61549.0,61537.0,0.001]
[1727803694741,0.22291905,61549.0,61539.0,0.24491395]
[1727803694742,0.162478,61547.0,61539.0,0.24491395]
[1727803694968,0.19991905,61546.0,61539.0,0.24491395]
[1727803695210,0.04346125,61545.0,61539.0,0.24491395]
[1727803695472,0.19991905,61544.0,61539.0,0.04804729]
[1727803695769,0.04346125,61543.0,61539.0,0.04804729]
[1727803696002,0.0289323,61543.0,61540.0,0.04849872]
[1727803696242,0.1564578,61542.0,61540.0,0.07274808]
[1727803696477,0.19164144,61541.0,61540.0,0.04851977]
[1727803696725,0.20028551,61541.0,61539.0,0.04851977]
[1727803696985,0.06202838,61540.0,61537.0,0.04851977]
[1727803697251,0.01820067,61539.0,61538.0,0.04851977]
[1727803697522,0.03287994,61539.0,61538.0,0.0911643]
[1727803697773,0.001,61544.0,61540.0,0.324989]
[1727803698030,0.032961,61543.0,61541.0,0.04851896]
[1727803698284,0.032961,61543.0,61540.0,0.04851896]
[1727803698285,0.032961,61542.0,61540.0,0.04851896]
[1727803698564,0.1894188,61541.0,61538.0,0.04851896]
[1727803698830,0.06217983,61540.0,61535.0,0.24491395]
[1727803699085,0.162506,61536.0,61535.0,0.24491395]
[1727803699342,0.3189638,61536.0,61535.0,0.24491395]
[1727803699626,0.21858902,61536.0,61530.0,0.001638]
[1727803699866,0.01473135,61536.0,61535.0,0.52886975]
[1727803700140,0.01473135,61536.0,61535.0,0.162709]
[1727803700430,0.000819,61544.0,61542.0,0.162489]
[1727803700713,0.1572768,61544.0,61541.0,0.162492]
[1727803700994,0.1572768,61544.0,61540.0,0.324989]
[1727803701232,0.000819,61544.0,61543.0,0.21125182]
[1727803701485,0.000819,61544.0,61543.0,0.68772959]
[1727803701771,0.000819,61544.0,61543.0,0.54688924]
[1727803702303,0.000819,61555.0,61554.0,0.59682527]
[1727803702551,0.000819,61555.0,61554.0,0.85328307]
[1727803702782,0.0254548,61568.0,61567.0,0.69679127]
[1727803703020,0.0254548,61568.0,61567.0,0.92848233]
[1727803703257,0.0254548,61568.0,61567.0,0.262624]
[1727803703731,0.1772433,61581.0,61567.0,0.262624]
[1727803703732,0.162391,61580.0,61568.0,0.1]
[1727803703984,0.324785,61580.0,61568.0,0.1]
[1727803704242,0.0148553,61581.0,61573.0,0.162408]
[1727803704493,0.162393,61579.0,61573.0,0.162408]
[1727803704739,0.0148553,61581.0,61573.0,0.162408]
[1727803704994,0.162392,61580.0,61573.0,0.162408]
[1727803705233,0.0148553,61581.0,61573.0,0.162408]
[1727803705455,0.0148553,61581.0,61573.0,0.162608]
[1727803705676,0.0148553,61581.0,61573.0,0.26832639]
[1727803705949,0.1572778,61574.0,61567.0,0.026]
[1727803706178,0.1572778,61574.0,61565.0,0.0002]
[1727803706179,0.1564578,61573.0,61569.0,0.324838]
[1727803706411,0.00182,61574.0,61573.0,0.012]
[1727803706647,0.00182,61574.0,61573.0,0.174408]
[1727803706897,0.00182,61574.0,61573.0,0.2490353]
[1727803706898,0.00082,61574.0,61573.0,0.2490353]
[1727803707405,0.00082,61574.0,61573.0,0.162608]
[1727803707406,0.02726735,61574.0,61573.0,0.162608]
[1727803707637,0.00082,61574.0,61573.0,0.162608]
[1727803708091,0.00182,61574.0,61573.0,0.174608]
[1727803709277,0.00182,61574.0,61569.0,0.005]
[1727803709278,0.163226,61574.0,61572.0,0.24491395]
[1727803709508,0.00082,61574.0,61573.0,0.162608]
[1727803709747,0.00182,61574.0,61573.0,0.178608]
[1727803709983,0.00182,61574.0,61573.0,0.30627276]
[1727803710214,0.00182,61574.0,61573.0,0.29027276]
[1727803710215,0.00082,61574.0,61573.0,0.29027276]
[1727803710446,0.00082,61574.0,61573.0,0.29427276]
[1727803710447,0.00182,61574.0,61573.0,0.29427276]
[1727803710666,0.00182,61574.0,61573.0,0.29027276]
[1727803710903,0.00082,61574.0,61573.0,0.29427276]
[1727803711444,0.00082,61574.0,61573.0,0.016]
[1727803711445,0.3206838,61574.0,61573.0,0.016]
[1727803711686,0.1582778,61574.0,61573.0,0.016]
[1727803711915,0.1582778,61574.0,61573.0,0.178408]
[1727803711916,0.00182,61574.0,61573.0,0.178408]
[1727803712431,0.00182,61574.0,61573.0,0.25324329]
[1727803712678,0.1572778,61574.0,61563.0,0.0002]
[1727803712912,0.1572778,61574.0,61561.0,0.324877]
[1727803712913,0.162411,61573.0,61568.0,0.162421]
[1727803713158,0.162411,61573.0,61566.0,0.162425]
[1727803713159,0.162419,61570.0,61566.0,0.162425]
[1727803713394,0.00082,61574.0,61565.0,0.24491395]
[1727803713395,0.00082,61574.0,61567.0,0.07322139]
[1727803713648,0.005619,61591.0,61585.0,0.005]
[1727803713649,0.000819,61591.0,61585.0,0.005]
[1727803713880,0.000819,61591.0,61573.0,0.50901395]
[1727803713881,0.000819,61591.0,61590.0,0.60153127]
[1727803714147,0.000819,61591.0,61590.0,0.167364]
[1727803714660,0.000819,61591.0,61590.0,0.267364]
[1727803715424,0.000819,61591.0,61590.0,0.162364]
[1727803715917,0.000819,61591.0,61590.0,0.2630492]
[1727803716208,0.000819,61591.0,61590.0,0.2590492]
[1727803716444,0.1802768,61591.0,61590.0,0.001]
[1727803716676,0.1572768,61591.0,61584.0,0.21231395]
[1727803716939,0.1572768,61591.0,61590.0,0.004]
[1727803717180,0.1572768,61591.0,61590.0,0.003]
[1727803717424,0.1572768,61591.0,61590.0,0.167364]
[1727803717663,0.18271833,61591.0,61590.0,0.019]
[1727803718395,0.36807933,61591.0,61590.0,0.019]
[1727803718653,0.36807933,61591.0,61590.0,0.014]
[1727803718928,0.20571833,61591.0,61582.0,0.24491395]
[1727803719212,0.023,61587.0,61584.0,0.003]
[1727803719457,0.1564578,61586.0,61582.0,0.24491395]
[1727803719727,0.02626053,61591.0,61583.0,0.005]
[1727803719985,0.1572768,61591.0,61590.0,0.163364]
[1727803720252,0.1572768,61591.0,61590.0,0.162364]
[1727803720507,0.000819,61591.0,61590.0,0.162364]
[1727803720763,0.000819,61591.0,61590.0,0.5050069]
[1727803723250,0.000819,61591.0,61590.0,0.5190069]
[1727803723478,0.000819,61591.0,61590.0,0.5330069]
[1727803723707,0.000819,61591.0,61590.0,0.5190069]
[1727803723965,0.000819,61591.0,61590.0,0.5050069]
[1727803724509,0.000817,61605.0,61602.0,0.70149927]
[1727803724762,0.000817,61605.0,61602.0,0.9605758]
[1727803724988,0.000817,61605.0,61602.0,1.1569758]
[1727803725275,0.000817,61605.0,61602.0,1.2343758]
[1727803726048,0.000817,61605.0,61602.0,1.2483758]
[1727803726304,0.000817,61605.0,61602.0,1.2293758]
[1727803726589,0.000817,61605.0,61602.0,1.2433758]
[1727803726851,0.000817,61605.0,61604.0,0.267327]
[1727803727088,0.000819,61611.0,61604.0,0.267327]
[1727803727362,0.023,61636.0,61611.0,0.1]
[1727803727603,0.24491395,61627.0,61615.0,0.005]
[1727803727969,0.324554,61623.0,61616.0,0.43416727]
[1727803727971,0.0328217,61626.0,61620.0,0.005]
[1727803728215,0.162276,61624.0,61617.0,0.005]
[1727803728451,0.162275,61624.0,61619.0,0.005]
[1727803728906,0.162272,61625.0,61619.0,0.167286]
[1727803729169,0.02542998,61634.0,61633.0,0.105]
[1727803729362,0.00947944,61665.0,61633.0,0.105]
[1727803729363,0.00447944,61665.0,61636.0,0.267242]
[1727803729624,0.32881444,61665.0,61641.0,0.262229]
[1727803729875,0.162176,61662.0,61641.0,0.85485407]
[1727803730107,0.162171,61663.0,61641.0,0.85485407]
[1727803730341,0.32881444,61665.0,61641.0,0.85485407]
[1727803730342,0.00322186,61642.0,61641.0,1.01630085]
[1727803730821,0.00322186,61642.0,61641.0,0.70339627]
[1727803731069,0.00322186,61642.0,61641.0,0.85985407]
[1727803731998,0.00322186,61642.0,61641.0,0.88685407]
[1727803732265,0.00322186,61642.0,61641.0,0.73039627]
[1727803732497,0.00322186,61642.0,61641.0,0.281229]
[1727803732708,0.00322186,61642.0,61641.0,0.79016677]
[1727803733033,0.00322186,61642.0,61641.0,0.77616677]
[1727803733213,0.00322186,61642.0,61641.0,0.77516677]
[1727803733451,0.00322186,61642.0,61641.0,0.72839627]
[1727803733914,0.00322186,61642.0,61641.0,0.73039627]
[1727803734149,0.00322186,61642.0,61641.0,0.71639627]
[1727803734570,0.00322186,61642.0,61641.0,0.72939627]
[1727803734793,0.00322186,61642.0,61641.0,0.026]
[1727803735048,0.00322186,61642.0,61641.0,0.175229]
[1727803735298,0.00322186,61642.0,61641.0,0.162229]
[1727803735557,0.00403986,61642.0,61641.0,0.017]
[1727803736037,0.32272466,61642.0,61641.0,0.013]
[1727803736293,0.32372466,61642.0,61641.0,0.013]
[1727803736556,0.32372466,61642.0,61641.0,0.162229]
[1727803736557,0.00403986,61642.0,61641.0,0.162229]
[1727803736787,0.00503986,61642.0,61640.0,0.43416727]
[1727803737046,0.00503986,61642.0,61641.0,0.008]
[1727803737296,0.00403986,61642.0,61641.0,0.008]
[1727803737541,0.00403986,61642.0,61636.0,0.105]
[1727803737795,0.49072286,61642.0,61641.0,0.008]
[1727803738038,0.00403986,61642.0,61641.0,0.008]
[1727803738281,0.00403986,61642.0,61641.0,0.1975204]
[1727803738509,0.00403986,61642.0,61641.0,0.1985204]
[1727803738741,0.00403986,61642.0,61641.0,0.2065204]
[1727803738992,0.00403986,61642.0,61641.0,0.270229]
[1727803739215,0.03,61644.0,61643.0,0.262224]
[1727803739691,0.03,61644.0,61641.0,0.008]
[1727803739947,0.03,61644.0,61624.0,0.324544]
[1727803739948,0.4809068,61643.0,61636.0,0.34491395]
[1727803740181,0.162233,61640.0,61637.0,0.24491395]
[1727803740435,0.03,61644.0,61641.0,0.008]
[1727803740937,0.185227,61642.0,61641.0,0.008]
[1727803740943,0.03,61644.0,61626.0,0.40718095]
[1727803740944,0.162256,61631.0,61626.0,0.40718095]
[1727803741180,0.324497,61634.0,61626.0,0.24491395]
[1727803741422,0.324519,61630.0,61626.0,0.24491395]
[1727803741670,0.1564578,61629.0,61626.0,0.42355765]
[1727803741906,0.1564578,61629.0,61628.0,0.162263]
[1727803742407,0.162251,61633.0,61628.0,0.162261]
[1727803742649,0.1564578,61633.0,61625.0,0.005]
[1727803742891,0.1564578,61633.0,61626.0,0.24491395]
[1727803743134,0.324449,61643.0,61633.0,0.005]
[1727803743384,0.324465,61640.0,61629.0,0.005]
[1727803743655,0.1749073,61639.0,61630.0,0.24491395]
[1727803743879,0.162244,61636.0,61630.0,0.162257]
[1727803744137,0.354446,61644.0,61628.0,0.24491395]
[1727803744138,0.1564578,61635.0,61628.0,0.24491395]
[1727803744356,0.162261,61629.0,61628.0,0.24491395]
[1727803744599,0.1564578,61629.0,61628.0,0.24491395]
[1727803744857,0.1564578,61629.0,61623.0,0.324551]
[1727803744858,0.1564578,61629.0,61619.0,0.40720095]
[1727803745122,0.1564578,61629.0,61626.0,0.24491395]
[1727803745358,0.1564578,61629.0,61627.0,0.162265]
[1727803745576,0.1564578,61628.0,61620.0,0.06751448]
[1727803745805,0.324534,61627.0,61622.0,0.24491395]
[1727803746047,0.324469,61640.0,61620.0,0.06431448]
[1727803746048,0.1564578,61626.0,61620.0,0.56947895]
[1727803746296,0.649016,61632.0,61625.0,0.16227]
[1727803746534,0.649016,61632.0,61624.0,0.327748]
[1727803746535,0.162263,61628.0,61627.0,0.001]
[1727803746776,0.16226,61630.0,61627.0,0.001]
[1727803746994,0.001,61636.0,61632.0,0.0032]
[1727803747503,0.1564578,61635.0,61629.0,0.56943595]
[1727803747750,0.1564578,61635.0,61629.0,0.24491395]
[1727803747986,0.1564578,61635.0,61627.0,0.001]
[1727803747987,0.01839517,61634.0,61627.0,0.011]
[1727803748225,0.324509,61632.0,61627.0,0.25591395]
[1727803748495,0.185266,61627.0,61626.0,0.001636]
[1727803748723,0.36010174,61627.0,61626.0,0.001636]
[1727803748945,0.37486371,61627.0,61626.0,0.001636]
[1727803749210,0.40483863,61627.0,61626.0,0.001636]
[1727803749439,0.16229,61618.0,61612.0,0.24491395]
[1727803749702,0.023,61616.0,61612.0,0.24491395]
[1727803749949,0.17505505,61615.0,61612.0,0.24491395]
[1727803750199,0.03335922,61614.0,61612.0,0.24491395]
[1727803750436,0.023,61616.0,61612.0,0.24491395]
[1727803750437,0.18982295,61613.0,61612.0,0.40721995]
[1727803750682,0.03336515,61613.0,61612.0,0.23869069]
[1727803750958,0.162288,61619.0,61609.0,0.324627]
[1727803751184,0.1564578,61613.0,61612.0,0.162306]
[1727803751433,0.1748883,61613.0,61612.0,0.172306]
[1727803751671,0.21195722,61613.0,61612.0,0.01]
[1727803751897,0.18895722,61613.0,61612.0,0.173306]
[1727803752452,0.15578452,61613.0,61612.0,0.011]
[1727803752708,0.38493491,61613.0,61612.0,0.011]
[1727803752922,0.40314956,61613.0,61612.0,0.011]
[1727803753143,0.42794973,61613.0,61612.0,0.01]
[1727803753435,0.40314956,61613.0,61612.0,0.01]
[1727803753903,0.40314956,61613.0,61603.0,0.00061918]
[1727803753904,0.185327,61604.0,61603.0,0.00061918]
[1727803754171,0.3941429,61604.0,61603.0,0.00061918]
[1727803754439,0.3941429,61604.0,61597.0,0.24491395]
[1727803754440,0.185342,61598.0,61597.0,0.24491395]
[1727803754695,0.185342,61598.0,61574.0,0.24491395]
[1727803754696,0.005,61596.0,61574.0,0.24491395]
[1727803754955,0.185403,61575.0,61574.0,0.24491395]
[1727803755195,0.03291859,61575.0,61574.0,0.24491395]
[1727803755463,0.023,61580.0,61574.0,0.40731795]
[1727803755710,0.023,61580.0,61575.0,0.162402]
[1727803755711,0.01834183,61579.0,61575.0,0.162402]
[1727803755913,0.023,61580.0,61575.0,0.162401]
[1727803756165,0.1564578,61578.0,61571.0,0.162411]
[1727803756405,0.1564578,61578.0,61572.0,0.162411]
[1727803756628,0.002,61575.0,61574.0,0.001]
[1727803756853,0.3438608,61575.0,61574.0,0.001]
[1727803757074,0.1814578,61575.0,61574.0,0.001]
[1727803757339,0.002,61575.0,61574.0,0.166606]
[1727803757585,0.002,61575.0,61574.0,0.25916683]
[1727803757821,0.002,61575.0,61574.0,0.26116683]
[1727803758044,0.002,61575.0,61574.0,0.168606]
[1727803758496,0.002,61575.0,61574.0,0.268606]
[1727803759149,0.162364,61590.0,61584.0,0.162379]
[1727803759375,0.1564578,61589.0,61585.0,0.162375]
[1727803759593,0.1564578,61589.0,61584.0,0.324756]
[1727803759876,0.324705,61595.0,61579.0,0.002]
[1727803759877,0.24491395,61597.0,61589.0,0.0032]
[1727803760076,0.162356,61593.0,61588.0,0.162367]
[1727803760300,0.4811578,61596.0,61588.0,0.0032]
[1727803760531,0.4811578,61596.0,61589.0,0.0032]
[1727803760759,0.4811578,61596.0,61591.0,0.16236]
[1727803760760,0.1564578,61596.0,61591.0,0.16236]
[1727803760988,0.1544578,61596.0,61585.0,0.0032]
[1727803761207,0.1544578,61596.0,61587.0,0.40728495]
[1727803761208,0.162358,61592.0,61587.0,0.40728495]
[1727803761454,0.162358,61592.0,61585.0,0.162375]
[1727803761455,0.165365,61590.0,61585.0,0.162375]
[1727803761715,0.165365,61590.0,61580.0,0.24491395]
[1727803761716,0.003,61590.0,61587.0,0.24491395]
[1727803761941,0.003,61590.0,61589.0,0.41047995]
[1727803762183,0.003,61590.0,61589.0,0.265566]
[1727803762436,0.000819,61597.0,61589.0,0.265566]
[1727803762437,0.000819,61597.0,61596.0,0.69971527]
[1727803762680,0.000819,61597.0,61596.0,0.85617307]
[1727803763127,0.000819,61597.0,61596.0,0.265548]
[1727803763588,0.000819,61597.0,61596.0,0.262348]
[1727803764071,0.000819,61597.0,61596.0,0.86517307]
[1727803764563,0.000819,61597.0,61596.0,0.85617307]
[1727803765031,0.000819,61597.0,61596.0,0.86417307]
[1727803765517,0.000819,61597.0,61596.0,0.86617307]
[1727803765769,0.24491395,61615.0,61614.0,0.1655]
[1727803766028,0.24491395,61615.0,61614.0,0.2655]